[Event "26th Bunratty Masters 2019"]
[Site "Bunratty"]
[Date "2019.02.22"]
[Round "1.5"]
[White "Williams, Simon K"]
[Black "Melaugh, Shane"]
[Result "1-0"]
[ECO "D00"]
[WhiteElo "2471"]
[BlackElo "2118"]
[Annotator "ChessBase"]
[PlyCount "69"]
[EventDate "2019.02.22"]
[EventType "swiss"]
[EventCountry "IRL"]
[SourceTitle "playchess.com"]
[Source "ChessBase"]
[SourceQuality "1"]
[TimeControl "40/5400+30:900+30"]

1. d4 {[%emt 0:11:03]} Nf6 {[%emt 0:00:08]} 2. Nc3 {[%emt 0:00:30]} d5 {[%emt 0:00:21]} 3. Bf4 {[%emt 0:00:26]} c5 {[%emt 0:01:12]} 4. e3 {[%emt 0:01:05]} a6 {[%emt 0:00:43]} 5. dxc5 {[%emt 0:01:45]} Nc6 {[%emt 0:01:58]} 6. Nf3 {[%emt 0:05:03]} e6 {[%emt 0:01:27]} 7. Na4 {[%emt 0:01:33]} Ne4 {[%emt 0:03:26]} 8. Bd3 {[%emt 0:05:58]} Nxc5 {[%emt 0:04:43]} 9. Nxc5 {[%emt 0:00:21]} Bxc5 {[%emt 0:00:19]} 10. O-O {[%emt 0:00:23]} Qe7 {[%emt 0:03:01]} 11. e4 {[%emt 0:01:36]} d4 {[%emt 0:09:16]} 12. e5 {[%emt 0:00:46]} h6 {[%emt 0:01:07]} 13. a3 {[%emt 0:01:47]} g5 {[%emt 0:00:59]} 14. Bg3 {[%emt 0:00:22]} b5 {[%emt 0:04:50]} 15. Nd2 {[%emt 0:02:34]} Bb6 {[%emt 0:02:53]} 16. f4 {[%emt 0:11:25]} Bc7 {[%emt 0:01:25]} 17. Qh5 {[%emt 0:05:17]} Bb7 {[%emt 0:08:33]} 18. fxg5 {[%emt 0:00:31]} O-O-O {[%emt 0:01:06]} 19. gxh6 {[%emt 0:00:49]} Nxe5 {[%emt 0:02:37]} 20. Bxe5 {[%emt 0:01:10]} Qc5 {[%emt 0:00:22]} 21. Rae1 {[%emt 0:01:44]} Rhg8 {[%emt 0:03:17]} 22. g3 {[%emt 0:03:22]} Rd5 {[%emt 0:01:37]} 23. h7 {[%emt 0:00:56]} Rh8 {[%emt 0:00:24]} 24. Qxf7 {[%emt 0:01:52]} Rxe5 {[%emt 0:01:12]} 25. Qg8+ {[%emt 0:01:11]} Bd8 {[%emt 0:00:54]} 26. Qxh8 {[%emt 0:00:29]} Re3 {[%emt 0:05:14]} 27. Qxd8+ {[%emt 0:01:03]} Kxd8 {[%emt 0:00:24]} 28. h8=Q+ {[%emt 0:00:22]} Kc7 {[%emt 0:00:22]} 29. Rf7+ {[%emt 0:00:40]} Kb6 {[%emt 0:00:27]} 30. Qd8+ {[%emt 0:00:39]} Ka7 {[%emt 0:00:25]} 31. Rxb7+ {[%emt 0:00:24]} Kxb7 {[%emt 0:00:22]} 32. Rf1 {[%emt 0:00:25]} Qe5 {[%emt 0:00:54]} 33. Rf7+ {[%emt 0:00:34]} Kc6 {[%emt 0:00:21]} 34. Qc8+ {[%emt 0:00:57]} Kb6 {[%emt 0:00:42]} 35. Qb7+ {[%emt 0:00:25]} 1-0

[Event "26th Bunratty Masters 2019"]
[Site "Bunratty"]
[Date "2019.02.23"]
[Round "1.6"]
[White "Voiteanu, Gabriel"]
[Black "Baburin, Alexander"]
[Result "1-0"]
[ECO "D11"]
[WhiteElo "2121"]
[BlackElo "2432"]
[Annotator "ChessBase"]
[PlyCount "96"]
[EventDate "2019.02.22"]
[EventType "swiss"]
[EventCountry "IRL"]
[SourceTitle "playchess.com"]
[Source "ChessBase"]
[SourceQuality "1"]
[TimeControl "40/5400+30:900+30"]

1. d4 {[%emt 0:00:07]} d5 {[%emt 0:18:46]} 2. Nf3 {[%emt 0:00:31]} Nf6 {[%emt 0:00:37]} 3. g3 {[%emt 0:00:24]} c6 {[%emt 0:01:28]} 4. Bg2 {[%emt 0:05:54]} Bf5 {[%emt 0:03:00]} 5. c4 {[%emt 0:04:36]} e6 {[%emt 0:01:19]} 6. Nc3 {[%emt 0:10:16]} Nbd7 {[%emt 0:00:53]} 7. Nh4 {[%emt 0:01:27]} Bg4 {[%emt 0:04:41]} 8. h3 {[%emt 0:05:49]} Bh5 {[%emt 0:00:23]} 9. g4 {[%emt 0:04:06]} Bg6 {[%emt 0:02:35]} 10. cxd5 {[%emt 0:08:31]} exd5 {[%emt 0:08:18]} 11. Nxg6 {[%emt 0:03:36]} hxg6 {[%emt 0:00:27]} 12. Bf4 {[%emt 0:02:44]} Nb6 {[%emt 0:13:15]} 13. Qd3 {[%emt 0:07:21]} Bd6 {[%emt 0:02:52]} 14. Qe3+ {[%emt 0:05:09]} Kf8 {[%emt 0:02:41]} 15. Qg3 {[%emt 0:02:51]} Bxf4 {[%emt 0:06:03]} 16. Qxf4 {[%emt 0:00:18]} Nc4 {[%emt 0:01:03]} 17. b3 {[%emt 0:05:09]} Qd6 {[%emt 0:04:45]} 18. Qxd6+ {[%emt 0:06:01]} Nxd6 {[%emt 0:00:47]} 19. Rc1 {[%emt 0:01:48]} Re8 {[%emt 0:07:47]} 20. f3 {[%emt 0:06:14]} Nd7 {[%emt 0:08:44]} 21. Kd2 {[%emt 0:06:07]} f5 {[%emt 0:00:46]} 22. e3 {[%emt 0:00:50]} Nf6 {[%emt 0:00:57]} 23. Rcf1 {[%emt 0:02:21]} Kg8 {[%emt 0:01:08]} 24. Kd3 {[%emt 0:02:34]} g5 {[%emt 0:00:46]} 25. Re1 {[%emt 0:01:49]} g6 {[%emt 0:01:17]} 26. e4 {[%emt 0:03:01]} fxe4+ {[%emt 0:01:15]} 27. fxe4 {[%emt 0:00:21]} dxe4+ {[%emt 0:00:22]} 28. Nxe4 {[%emt 0:00:33]} Nfxe4 {[%emt 0:04:31]} 29. Bxe4 {[%emt 0:00:18]} Nxe4 {[%emt 0:00:20]} 30. Rxe4 {[%emt 0:00:18]} Rxe4 {[%emt 0:00:19]} 31. Kxe4 {[%emt 0:00:16]} Kf7 {[%emt 0:00:20]} 32. Rf1+ {[%emt 0:02:06]} Ke6 {[%emt 0:00:37]} 33. Rf3 {[%emt 0:00:16]} Re8 {[%emt 0:01:34]} 34. Kd3 {[%emt 0:00:34]} Rh8 {[%emt 0:01:15]} 35. Kc4 {[%emt 0:00:31]} b6 {[%emt 0:00:16]} 36. Re3+ {[%emt 0:01:00]} Kf6 {[%emt 0:00:16]} 37. d5 {[%emt 0:00:38]} cxd5+ {[%emt 0:00:23]} 38. Kxd5 {[%emt 0:00:16]} Rc8 {[%emt 0:00:33]} 39. Kd6 {[%emt 0:00:32]} Rd8+ {[%emt 0:01:03]} 40. Kc6 {[%emt 0:00:44]} Rd4 {[%emt 0:01:08]} 41. Kb7 {[%emt 0:15:45]} Rd7+ {[%emt 0:15:18]} 42. Ka6 {[%emt 0:00:27]} Rc7 {[%emt 0:00:32]} 43. b4 {[%emt 0:00:41]} Rd7 {[%emt 0:00:26]} 44. b5 {[%emt 0:00:40]} Rc7 {[%emt 0:00:18]} 45. a4 {[%emt 0:00:56]} Kf7 {[%emt 0:00:25]} 46. Re5 {[%emt 0:00:27]} Kf6 {[%emt 0:00:37]} 47. Re8 {[%emt 0:00:21]} Rd7 {[%emt 0:00:57]} 48. Ra8 {[%emt 0:00:28]} Ke7 {[%emt 0:00:57]} 1-0

[Event "26th Bunratty Masters 2019"]
[Site "Bunratty"]
[Date "2019.02.23"]
[Round "3.1"]
[White "Wells, Peter K"]
[Black "McShane, Luke J"]
[Result "0-1"]
[ECO "A31"]
[WhiteElo "2415"]
[BlackElo "2663"]
[Annotator "ChessBase"]
[PlyCount "69"]
[EventDate "2019.02.22"]
[EventType "swiss"]
[EventCountry "IRL"]
[SourceTitle "playchess.com"]
[Source "ChessBase"]
[SourceQuality "1"]
[TimeControl "40/5400+30:900+30"]

1. d4 {[%emt 0:06:58]} Nf6 {[%emt 0:00:19]} 2. c4 {[%emt 0:00:28]} c5 {[%emt 0:00:27]} 3. Nf3 {[%emt 0:02:55]} cxd4 {[%emt 0:06:09]} 4. Nxd4 {[%emt 0:00:40]} b6 {[%emt 0:00:19]} 5. Nc3 {[%emt 0:04:03]} Bb7 {[%emt 0:01:09]} 6. Bg5 {[%emt 0:02:02]} a6 {[%emt 0:03:36]} 7. Bxf6 {[%emt 0:07:17]} gxf6 {[%emt 0:00:22]} 8. e3 {[%emt 0:00:18]} e6 {[%emt 0:00:51]} 9. Be2 {[%emt 0:26:19]} Bxg2 {[%emt 0:00:24]} 10. Rg1 {[%emt 0:00:18]} Bc6 {[%emt 0:03:31]} 11. Bh5 {[%emt 0:04:53]} Qe7 {[%emt 0:04:37]} 12. Qe2 {[%emt 0:05:29]} f5 {[%emt 0:04:34]} 13. O-O-O {[%emt 0:03:25]} Qf6 {[%emt 0:02:20]} 14. f4 {[%emt 0:09:15]} Bb4 {[%emt 0:05:33]} 15. Qd3 {[%emt 0:01:01]} Ra7 {[%emt 0:15:40]} 16. Rg5 {[%emt 0:03:03]} h6 {[%emt 0:03:22]} 17. Rg3 {[%emt 0:00:35]} Rf8 {[%emt 0:03:54]} 18. a3 {[%emt 0:02:03]} Be7 {[%emt 0:16:30]} 19. Nf3 {[%emt 0:02:41]} Bxf3 {[%emt 0:08:34]} 20. Bxf3 {[%emt 0:00:21]} Rc7 {[%emt 0:00:20]} 21. Kb1 {[%emt 0:00:37]} d6 {[%emt 0:09:41]} 22. Na4 {[%emt 0:01:12]} Nd7 {[%emt 0:00:51]} 23. Qb3 {[%emt 0:01:15]} b5 {[%emt 0:03:51]} 24. cxb5 {[%emt 0:00:49]} axb5 {[%emt 0:00:18]} 25. Qxb5 {[%emt 0:00:30]} d5 {[%emt 0:00:42]} 26. Rgg1 {[%emt 0:01:54]} Bd6 {[%emt 0:01:05]} 27. Nb6 {[%emt 0:05:19]} Rb7 {[%emt 0:03:29]} 28. Nxd7 {[%emt 0:00:49]} Rxd7 {[%emt 0:00:19]} 29. Bxd5 {[%emt 0:04:05]} exd5 {[%emt 0:00:20]} 30. Rxd5 {[%emt 0:00:17]} Ke7 {[%emt 0:00:32]} 31. Rgd1 {[%emt 0:00:26]} Qe6 {[%emt 0:00:49]} 32. Rxf5 {[%emt 0:02:49]} Rb8 {[%emt 0:00:20]} 33. Qd3 {[%emt 0:00:45]} Rb3 {[%emt 0:00:49]} 34. Qc2 {[%emt 0:01:08]} Rdb7 {[%emt 0:00:37]} 35. Rxd6 {[%emt 0:01:12]} 0-1

[Event "26th Bunratty Masters 2019"]
[Site "Bunratty"]
[Date "2019.02.23"]
[Round "3.2"]
[White "Short, Nigel D"]
[Black "Bates, Richard A"]
[Result "1-0"]
[ECO "B90"]
[WhiteElo "2648"]
[BlackElo "2351"]
[Annotator "ChessBase"]
[PlyCount "71"]
[EventDate "2019.02.22"]
[EventType "swiss"]
[EventCountry "IRL"]
[SourceTitle "playchess.com"]
[Source "ChessBase"]
[SourceQuality "1"]
[TimeControl "40/5400+30:900+30"]

1. e4 {[%emt 0:00:34]} c5 {[%emt 0:00:17]} 2. Nf3 {[%emt 0:00:20]} d6 {[%emt 0:00:32]} 3. d4 {[%emt 0:00:22]} cxd4 {[%emt 0:00:24]} 4. Nxd4 {[%emt 0:00:20]} Nf6 {[%emt 0:00:51]} 5. Nc3 {[%emt 0:00:21]} a6 {[%emt 0:00:34]} 6. a4 {[%emt 0:01:05]} Nc6 {[%emt 0:04:03]} 7. Be2 {[%emt 0:00:28]} e5 {[%emt 0:01:20]} 8. Nxc6 {[%emt 0:01:51]} bxc6 {[%emt 0:00:28]} 9. f4 {[%emt 0:00:17]} a5 {[%emt 0:02:38]} 10. O-O {[%emt 0:00:29]} Be7 {[%emt 0:03:27]} 11. Kh1 {[%emt 0:00:33]} O-O {[%emt 0:01:17]} 12. Qe1 {[%emt 0:00:56]} Rb8 {[%emt 0:14:08]} 13. fxe5 {[%emt 0:07:21]} dxe5 {[%emt 0:00:24]} 14. Qg3 {[%emt 0:00:20]} Rb4 {[%emt 0:04:13]} 15. Bh6 {[%emt 0:01:50]} Ne8 {[%emt 0:01:15]} 16. Rad1 {[%emt 0:00:23]} Qc7 {[%emt 0:04:08]} 17. b3 {[%emt 0:01:08]} Be6 {[%emt 0:04:53]} 18. Bg4 {[%emt 0:04:59]} Qc8 {[%emt 0:13:21]} 19. Bxe6 {[%emt 0:02:57]} Qxe6 {[%emt 0:00:27]} 20. Bc1 {[%emt 0:00:42]} Nf6 {[%emt 0:03:11]} 21. Qf3 {[%emt 0:01:08]} Rd4 {[%emt 0:03:57]} 22. Be3 {[%emt 0:01:01]} Rd7 {[%emt 0:07:56]} 23. Rxd7 {[%emt 0:02:58]} Nxd7 {[%emt 0:00:37]} 24. Nb1 {[%emt 0:00:37]} g6 {[%emt 0:08:08]} 25. g4 {[%emt 0:09:43]} Bc5 {[%emt 0:02:18]} 26. Bh6 {[%emt 0:00:51]} Rd8 {[%emt 0:04:48]} 27. Nd2 {[%emt 0:00:24]} Nb6 {[%emt 0:02:43]} 28. h3 {[%emt 0:02:11]} Bb4 {[%emt 0:01:58]} 29. Qf2 {[%emt 0:02:30]} Nd7 {[%emt 0:04:21]} 30. Nc4 {[%emt 0:04:47]} Nc5 {[%emt 0:02:47]} 31. Qf3 {[%emt 0:02:26]} Rd4 {[%emt 0:01:28]} 32. Nxe5 {[%emt 0:04:51]} Rxe4 {[%emt 0:00:34]} 33. Nxc6 {[%emt 0:03:35]} Nd7 {[%emt 0:02:15]} 34. Nd8 {[%emt 0:02:53]} Qe7 {[%emt 0:00:59]} 35. Nxf7 {[%emt 0:03:24]} Re1 {[%emt 0:00:17]} 36. Ng5 {[%emt 0:00:26]} 1-0

[Event "26th Bunratty Masters 2019"]
[Site "Bunratty"]
[Date "2019.02.23"]
[Round "3.3"]
[White "O'Gorman, Tom"]
[Black "Turner, Matthew J"]
[Result "0-1"]
[ECO "C92"]
[WhiteElo "2248"]
[BlackElo "2519"]
[Annotator "ChessBase"]
[PlyCount "55"]
[EventDate "2019.02.22"]
[EventType "swiss"]
[EventCountry "IRL"]
[SourceTitle "playchess.com"]
[Source "ChessBase"]
[SourceQuality "1"]
[TimeControl "40/5400+30:900+30"]

1. e4 {[%emt 0:00:02]} e5 {[%emt 0:00:07]} 2. Nf3 {[%emt 0:00:20]} Nc6 {[%emt 0:00:21]} 3. Bb5 {[%emt 0:00:18]} a6 {[%emt 0:00:18]} 4. Ba4 {[%emt 0:00:18]} Nf6 {[%emt 0:00:21]} 5. O-O {[%emt 0:00:21]} Be7 {[%emt 0:00:58]} 6. Re1 {[%emt 0:00:20]} b5 {[%emt 0:00:26]} 7. Bb3 {[%emt 0:00:18]} d6 {[%emt 0:00:22]} 8. c3 {[%emt 0:00:19]} O-O {[%emt 0:00:23]} 9. h3 {[%emt 0:00:18]} Be6 {[%emt 0:00:42]} 10. d4 {[%emt 0:01:43]} Bxb3 {[%emt 0:00:55]} 11. axb3 {[%emt 0:00:44]} exd4 {[%emt 0:00:35]} 12. cxd4 {[%emt 0:00:25]} Nb4 {[%emt 0:01:08]} 13. Nc3 {[%emt 0:03:51]} c5 {[%emt 0:01:17]} 14. Bg5 {[%emt 0:04:11]} Re8 {[%emt 0:04:24]} 15. e5 {[%emt 0:08:35]} dxe5 {[%emt 0:02:38]} 16. Rxe5 {[%emt 0:02:09]} cxd4 {[%emt 0:02:27]} 17. Qxd4 {[%emt 0:02:07]} Qxd4 {[%emt 0:05:57]} 18. Nxd4 {[%emt 0:00:32]} h6 {[%emt 0:00:36]} 19. Bh4 {[%emt 0:03:12]} g5 {[%emt 0:03:50]} 20. Bg3 {[%emt 0:03:42]} Bf8 {[%emt 0:00:28]} 21. Rae1 {[%emt 0:08:24]} Rxe5 {[%emt 0:02:33]} 22. Bxe5 {[%emt 0:01:04]} Nd7 {[%emt 0:04:58]} 23. Bg3 {[%emt 0:03:02]} Nc5 {[%emt 0:02:28]} 24. Ne4 {[%emt 0:05:35]} Nbd3 {[%emt 0:02:11]} 25. Re3 {[%emt 0:02:03]} Nxe4 {[%emt 0:00:49]} 26. Rxd3 {[%emt 0:01:01]} Nxg3 {[%emt 0:10:19]} 27. Rxg3 {[%emt 0:00:33]} Rd8 {[%emt 0:00:22]} 28. Rg4 {[%emt 0:06:49]} 0-1

[Event "26th Bunratty Masters 2019"]
[Site "Bunratty"]
[Date "2019.02.23"]
[Round "3.5"]
[White "O'Donnell, Conor"]
[Black "Hebden, Mark L"]
[Result "0-1"]
[ECO "E81"]
[WhiteElo "2377"]
[BlackElo "2417"]
[Annotator "NA"]
[PlyCount "82"]
[EventDate "2019.02.22"]
[EventType "swiss"]
[EventCountry "IRL"]
[SourceTitle "playchess.com"]
[Source "ChessBase"]
[SourceQuality "1"]
[TimeControl "40/5400+30:900+30"]

1. d4 {[%emt 0:09:19]} Nf6 {[%emt 0:00:25]} 2. c4 {[%emt 0:00:21]} g6 {[%emt 0:01:05]} 3. Nc3 {[%emt 0:00:23]} Bg7 {[%emt 0:00:20]} 4. e4 {[%emt 0:00:24]} d6 {[%emt 0:00:19]} 5. f3 {[%emt 0:00:25]} O-O {[%emt 0:00:28]} 6. Be3 {[%emt 0:00:27]} c5 {[%emt 0:01:28]} 7. Nge2 {[%emt 0:00:39]} Nc6 {[%emt 0:01:30]} 8. d5 {[%emt 0:00:34]} Ne5 {[%emt 0:01:20]} 9. Ng3 {[%emt 0:00:40]} e6 {[%emt 0:00:40]} 10. Be2 {[%emt 0:02:13]} exd5 {[%emt 0:00:41]} 11. cxd5 {[%emt 0:00:35]} h5 {[%emt 0:00:33]} 12. O-O {[%emt 0:07:37]} Nh7 {[%emt 0:01:37]} 13. Qd2 {[%emt 0:03:10]} h4 {[%emt 0:10:30]} 14. Nh1 {[%emt 0:00:22]} f5 {[%emt 0:00:46]} 15. exf5 {[%emt 0:02:49]} gxf5 {[%emt 0:06:49]} 16. Nf2 {[%emt 0:01:29]} Bd7 {[%emt 0:01:52]} 17. a4 {[%emt 0:04:15]} Qf6 {[%emt 0:04:00]} 18. Nh3 {[%emt 0:04:06]} Rae8 {[%emt 0:03:08]} 19. Nf4 {[%emt 0:06:34]} Ng6 {[%emt 0:01:07]} 20. Nh5 {[%emt 0:20:32]} Qe7 {[%emt 0:04:14]} 21. Bh6 {[%emt 0:05:57]} Bxh6 {[%emt 0:03:44]} 22. Qxh6 {[%emt 0:00:22]} Qe3+ {[%emt 0:00:29]} 23. Qxe3 {[%emt 0:00:21]} Rxe3 {[%emt 0:00:19]} 24. Kf2 {[%emt 0:02:26]} Re7 {[%emt 0:03:38]} 25. Nb5 {[%emt 0:04:44]} f4 {[%emt 0:05:47]} 26. Rfe1 {[%emt 0:08:52]} Bxb5 {[%emt 0:02:08]} 27. axb5 {[%emt 0:01:30]} Ne5 {[%emt 0:06:29]} 28. g4 {[%emt 0:03:30]} fxg3+ {[%emt 0:03:55]} 29. hxg3 {[%emt 0:00:17]} Rf5 {[%emt 0:19:41]} 30. f4 {[%emt 0:01:07]} Rxh5 {[%emt 0:00:39]} 31. Bxh5 {[%emt 0:01:13]} Nd3+ {[%emt 0:00:23]} 32. Kf1 {[%emt 0:00:37]} Rxe1+ {[%emt 0:00:26]} 33. Rxe1 {[%emt 0:00:21]} Nxe1 {[%emt 0:00:19]} 34. Kxe1 {[%emt 0:00:31]} hxg3 {[%emt 0:00:54]} 35. Kf1 {[%emt 0:01:53]} Nf6 {[%emt 0:01:38]} 36. Bf3 {[%emt 0:00:21]} Ne8 {[%emt 0:00:29]} 37. Be2 {[%emt 0:01:40]} Nf6 {[%emt 0:00:55]} 38. Bf3 {[%emt 0:02:02]} Kg7 {[%emt 0:00:30]} 39. Kg2 {[%emt 0:00:26]} Kg6 {[%emt 0:00:20]} 40. Kxg3 {[%emt 0:00:24]} Kf5 {[%emt 0:00:21]} 41. Bg2 {[%emt 0:17:06]} Nh5+ {[%emt 0:15:36]} 0-1

[Event "26th Bunratty Masters 2019"]
[Site "Bunratty"]
[Date "2019.02.23"]
[Round "3.6"]
[White "Lalic, Bogdan"]
[Black "Fitzsimons, David"]
[Result "1/2-1/2"]
[ECO "E34"]
[WhiteElo "2406"]
[BlackElo "2301"]
[Annotator "NA"]
[PlyCount "29"]
[EventDate "2019.02.22"]
[EventType "swiss"]
[EventCountry "IRL"]
[SourceTitle "playchess.com"]
[Source "ChessBase"]
[SourceQuality "1"]
[TimeControl "40/5400+30:900+30"]

1. d4 {[%emt 0:12:03]} Nf6 {[%emt 0:00:06]} 2. c4 {[%emt 0:00:31]} e6 {[%emt 0:00:24]} 3. Nc3 {[%emt 0:00:20]} Bb4 {[%emt 0:00:19]} 4. Qc2 {[%emt 0:00:20]} d5 {[%emt 0:00:56]} 5. cxd5 {[%emt 0:01:03]} Qxd5 {[%emt 0:00:26]} 6. e3 {[%emt 0:01:58]} c5 {[%emt 0:00:26]} 7. Bd2 {[%emt 0:00:24]} Bxc3 {[%emt 0:00:33]} 8. Bxc3 {[%emt 0:00:24]} cxd4 {[%emt 0:00:23]} 9. Bxd4 {[%emt 0:00:21]} Nc6 {[%emt 0:00:37]} 10. Bxf6 {[%emt 0:01:31]} gxf6 {[%emt 0:00:20]} 11. Ne2 {[%emt 0:00:55]} Bd7 {[%emt 0:01:26]} 12. Nc3 {[%emt 0:00:29]} Qc5 {[%emt 0:02:10]} 13. Be2 {[%emt 0:05:19]} Rc8 {[%emt 0:03:39]} 14. O-O {[%emt 0:00:53]} O-O {[%emt 0:00:36]} 15. Rfd1 {[%emt 0:01:59]} 1/2-1/2

[Event "26th Bunratty Masters 2019"]
[Site "Bunratty"]
[Date "2019.02.24"]
[Round "6.6"]
[White "Bates, Richard A"]
[Black "Lalic, Bogdan"]
[Result "0-1"]
[ECO "E60"]
[WhiteElo "2351"]
[BlackElo "2406"]
[Annotator "NA RC"]
[PlyCount "52"]
[EventDate "2019.02.22"]
[EventType "swiss"]
[EventCountry "IRL"]
[SourceTitle "playchess.com"]
[Source "ChessBase"]
[SourceQuality "1"]
[TimeControl "40/5400+30:900+30"]

1. d4 {[%emt 0:05:24]} Nf6 {[%emt 0:07:15]} 2. Nf3 {[%emt 0:00:55]} g6 {[%emt 0:00:23]} 3. c4 {[%emt 0:02:14]} Bg7 {[%emt 0:00:30]} 4. g3 {[%emt 0:00:27]} c5 {[%emt 0:00:26]} 5. Bg2 {[%emt 0:02:45]} Qa5+ {[%emt 0:03:30]} 6. Nc3 {[%emt 0:10:39]} Ne4 {[%emt 0:00:36]} 7. Qd3 {[%emt 0:02:10]} cxd4 {[%emt 0:00:52]} 8. Nxd4 {[%emt 0:00:43]} Nc5 {[%emt 0:00:31]} 9. Qe3 {[%emt 0:05:57]} Nc6 {[%emt 0:01:06]} 10. Nxc6 {[%emt 0:01:45]} dxc6 {[%emt 0:00:26]} 11. O-O {[%emt 0:09:18]} Qb4 {[%emt 0:12:50]} 12. Bd2 {[%emt 0:13:52]} Qxc4 {[%emt 0:00:50]} 13. Rac1 {[%emt 0:07:57]} Ne6 {[%emt 0:05:51]} 14. Nb1 {[%emt 0:12:11]} Qxa2 {[%emt 0:04:18]} 15. Bc3 {[%emt 0:08:44]} O-O {[%emt 0:06:21]} 16. Nd2 {[%emt 0:00:29]} Bxc3 {[%emt 0:01:33]} 17. Qxc3 {[%emt 0:00:50]} Nc7 {[%emt 0:06:08]} 18. Qe5 {[%emt 0:03:50]} Nb5 {[%emt 0:02:28]} 19. Qxe7 {[%emt 0:03:01]} Qxb2 {[%emt 0:05:41]} 20. Ne4 {[%emt 0:00:45]} f5 {[%emt 0:00:50]} 21. Ng5 {[%emt 0:03:47]} Qg7 {[%emt 0:00:23]} 22. Qb4 {[%emt 0:01:12]} h6 {[%emt 0:01:03]} 23. Nf3 {[%emt 0:01:06]} Be6 {[%emt 0:00:48]} 24. Rc5 {[%emt 0:00:48]} Rad8 {[%emt 0:00:56]} 25. Re5 {[%emt 0:00:17]} Rfe8 {[%emt 0:02:01]} 26. Qh4 {[%emt 0:01:31]} Bd5 {[%emt 0:01:30]} 0-1